fUSD/lending_fUSD_20251012
["ID","MTS","AMOUNT","RATE_DAILY","PERIOD"]
[391075414,1760304643577,-151.0,0.00015,2]
[391075416,1760304643586,-151.0,0.00015,2]
[391075419,1760304643599,-151.0,0.00015,2]
[391075420,1760304643608,-170.374139,0.00015,2]
[391075422,1760304643617,-151.0,0.00015,2]
[391075424,1760304643627,-151.0,0.00015,2]
[391075425,1760304643637,-283.674294,0.00015,2]
[391075426,1760304643646,-207.100581,0.00015,2]
[391075427,1760304643656,-207.100581,0.00015,2]
[391075428,1760304643665,-207.100581,0.00015,2]
[391075429,1760304643674,-207.100581,0.00015,2]
[391075430,1760304643684,-207.100581,0.00015,2]
[391075431,1760304643692,-207.100581,0.00015,2]
[391075432,1760304643702,-207.100581,0.00015,2]
[391075433,1760304643711,-207.100581,0.00015,2]
[391075434,1760304643720,-151.0,0.00015,2]
[391075435,1760304643729,-151.0,0.00015,2]
[391075436,1760304643738,-233.638788,0.00015,2]
[391075437,1760304643747,-187.160443,0.00015,2]
[391075438,1760304643756,-187.160443,0.00015,2]
[391075439,1760304643766,-187.160443,0.00015,2]
[391075440,1760304643775,-187.160443,0.00015,2]
[391075441,1760304643784,-187.160443,0.00015,2]
[391075442,1760304643793,-187.160443,0.00015,2]
[391075443,1760304643802,-187.160443,0.00015,2]
[391075444,1760304643811,-187.160443,0.00015,2]
[391075445,1760304643820,-160.0,0.00015,2]
[391075446,1760304643829,-151.0,0.00015,2]
[391075447,1760304643838,-151.0,0.00015,2]
[391075448,1760304643850,-151.0,0.00015,2]
[391075449,1760304643859,-151.0,0.00015,2]
[391075450,1760304643868,-151.0,0.00015,2]
[391075451,1760304643878,-151.0,0.00015,2]
[391075452,1760304643887,-1887667.65877011,0.00015,2]
[391075453,1760304643896,-151.0,0.00015,2]
[391075454,1760304643906,-151.0,0.00015,2]
[391075455,1760304643915,-1078.69849,0.00015,2]
[391075456,1760304643924,-241.535774,0.00015,2]
[391075457,1760304643934,-151.0,0.00015,2]
[391075458,1760304643943,-151.0,0.00015,2]
[391075459,1760304643953,-276.183688,0.00015,2]
[391075460,1760304643962,-176.17,0.00015037,2]
[391075461,1760304643971,-4028.50082847,0.00015085,2]
[391075462,1760304643980,-192.03,0.00015255,2]
[391075463,1760304643989,-1078.69849,0.0001527,2]
[391075464,1760304643999,-670.34,0.00015273,2]
[391075465,1760304644008,-500.0,0.00015274,2]
[391075466,1760304644017,-6229.38382472,0.00015286,2]
[391075467,1760304644027,-670.34,0.00015547,2]
[391075468,1760304644036,-1942.08902695,0.00015547,2]
[391075469,1760304644045,-500.0,0.00015548,2]
[391075470,1760304644055,-6229.38382472,0.00015672,2]
[391075471,1760304644064,-1078.69849,0.0001578,2]
[391075472,1760304644074,-670.34,0.00015821,2]
[391075473,1760304644084,-500.0,0.00015822,2]
[391075474,1760304644094,-300.0,0.00015948,2]
[391075475,1760304644103,-420.0,0.00015982,2]
[391075476,1760304644112,-1000.0,0.00015999,2]
[391075477,1760304644121,-2506.684687,0.00016,2]
[391075479,1760304644131,-255.0,0.00016031,2]
[391075481,1760304644139,-11535.74,0.00016057,2]
[391075483,1760304644148,-1680.0,0.00016057,2]
[391075518,1760304644409,-6229.38382472,0.00016059,2]
[391075520,1760304644420,-500.0,0.00016073,2]
[391075522,1760304644429,-500.0,0.00016073,2]
[391075524,1760304644438,-500.0,0.00016073,2]
[391075526,1760304644447,-501.40623285,0.00016073,2]
[391075527,1760304644456,-500.19442132,0.00016073,2]
[391075530,1760304644465,-500.0,0.00016073,2]
[391075532,1760304644476,-500.0,0.00016073,2]
[391075533,1760304644493,-2751.0,0.00016074,2]
[391075535,1760304644502,-670.34,0.00016095,2]
[391075537,1760304644511,-500.0,0.00016096,2]
[391075539,1760304644520,-212.94159926,0.000162,2]
[391075542,1760304644529,-173.58611155,0.000162,2]
[391075544,1760304644539,-150.0,0.00016201,2]
[391075546,1760304644548,-1078.6985,0.0001627,2]
[391075548,1760304644557,-670.34,0.00016369,2]
[391075550,1760304644566,-500.0,0.0001637,2]
[391075551,1760304644575,-173.58611155,0.000164,2]
[391075554,1760304644585,-434.5674,0.00016438,2]
[391075555,1760304644595,-6229.38382472,0.00016445,2]
[391075557,1760304644604,-2913.13354043,0.0001646,2]
[391075559,1760304644614,-199.06590457,0.00016492,2]
[391075561,1760304644623,-173.58611155,0.000165,2]
[391075563,1760304644632,-638.15,0.00016505,2]
[391075565,1760304644642,-500.0,0.00016525,2]
[391075567,1760304644651,-1000.0,0.00016621,2]
[391075569,1760304644660,-1000.0,0.00016621,2]
[391075571,1760304644669,-1000.0,0.00016621,2]
[391075573,1760304644679,-1000.0,0.00016621,2]
[391075575,1760304644688,-670.34,0.00016643,2]
[391075577,1760304644697,-500.0,0.00016644,2]
[391075579,1760304644706,-173.58611155,0.000167,2]
[391075580,1760304644716,-163.17,0.00016712,2]
[391075581,1760304644725,-250.0,0.00016744,2]
[391075582,1760304644735,-1078.69849,0.0001677,2]
[391075583,1760304644744,-6229.38382472,0.00016831,2]
[391075584,1760304644753,-920.765128,0.00016903,2]
[391075585,1760304644762,-670.39470234,0.00016917,2]
[391075586,1760304644773,-500.0,0.00016918,2]
[391075587,1760304644782,-8265.05,0.00016922,2]
[391075588,1760304644792,-150.99,0.00016922,2]
[391075589,1760304644801,-150.99,0.00016922,2]
[391075590,1760304644810,-9094.06,0.00016922,2]
[391075591,1760304644819,-299.99,0.00016922,4]
[391075592,1760304644828,-506.1,0.00016922,2]
[391075593,1760304644838,-9999.99,0.00016922,2]
[391075594,1760304644850,-9999.99,0.00016922,2]
[391075595,1760304644858,-8984.43,0.00016922,2]
[391075596,1760304644868,-3556.08,0.00016922,2]
[391075597,1760304644878,-1617.69,0.00016922,2]
[391075598,1760304644887,-166.67,0.00016943,2]
[391075599,1760304644899,-500.0,0.00016973,2]
[391075600,1760304644908,-500.0,0.00016973,2]
[391075601,1760304644918,-500.0,0.00016973,2]
[391075602,1760304644927,-500.0,0.00016973,2]
[391075603,1760304644937,-500.3966934,0.00016973,2]
[391075604,1760304644946,-500.0,0.00016973,2]
[391075605,1760304644955,-471.84238491,0.00016973,2]
[391075606,1760304644964,-500.0,0.00016973,2]
[391075607,1760304644973,-500.0,0.00016973,2]
[391075608,1760304644983,-500.0,0.00016973,2]
[391075609,1760304644992,-500.0,0.00016973,2]
[391075610,1760304645001,-500.0,0.00016973,2]
[391075611,1760304645011,-410.62374577,0.00016973,2]
[391075612,1760304645020,-500.0,0.00016973,2]
[391075613,1760304645030,-449.82108035,0.00016973,2]
[391075614,1760304645040,-500.0,0.00016973,2]
[391075615,1760304645049,-515.4781757,0.00016973,2]
[391075616,1760304645059,-500.0,0.00016973,2]
[391075617,1760304645069,-250.0,0.00017,2]
[391075618,1760304645078,-1151.68649114,0.00017,2]
[391075619,1760304645088,-921.34919292,0.00017,2]
[391075620,1760304645100,-500.0,0.0001704,2]
[391075621,1760304645109,-500.0,0.00017044,2]
[391075622,1760304645119,-1897.5451734,0.00017112,2]
[391075623,1760304645129,-1500.0,0.00017168,2]
[391075624,1760304645138,-1500.0,0.00017168,2]
[391075625,1760304645148,-1500.0,0.00017168,2]
[391075626,1760304645157,-1500.0,0.00017168,2]
[391075627,1760304645166,-500.0,0.00017192,2]
[391075628,1760304645175,-1151.68649114,0.000172,2]
[391075629,1760304645185,-6229.38382472,0.00017217,2]
[391075630,1760304645194,-433.0,0.00017253,2]
[391075631,1760304645203,-1078.69849,0.0001727,2]
[391075632,1760304645212,-823.32684396,0.0001729,2]
[391075633,1760304645222,-1151.68649114,0.000173,2]
[391075634,1760304645231,-300.0,0.00017318,2]
[391075635,1760304645240,-205.4504704,0.00017328,2]
[391075636,1760304645249,-3884.17805391,0.00017372,2]
[391075637,1760304645258,-500.0,0.00017466,2]
[391075638,1760304645267,-587.0,0.00017499,2]
[391075639,1760304645277,-1151.68649114,0.000175,2]
[391075642,1760304645286,-1000.0,0.00017521,2]
[391075644,1760304645295,-427.62336769,0.00017521,2]
[391075646,1760304645304,-500.0,0.00017521,2]
[391075647,1760304645313,-1000.0,0.00017521,2]
[391075648,1760304645323,-1000.0,0.00017521,2]
[391075649,1760304645332,-1000.0,0.00017521,2]
[391075650,1760304645341,-454.64930992,0.00017521,2]
[391075652,1760304645352,-1000.0,0.00017521,2]
[391075653,1760304645361,-1000.0,0.00017521,2]
[391075655,1760304645370,-207.100581,0.00017531,2]
[391075656,1760304645380,-207.100581,0.00017531,2]
[391075657,1760304645391,-207.100581,0.00017531,2]
[391075658,1760304645401,-207.100581,0.00017531,2]
[391075659,1760304645411,-151.0,0.00017531,2]
[391075660,1760304645420,-187.160443,0.00017531,2]
[391075661,1760304645428,-187.160443,0.00017531,2]
[391075662,1760304645438,-187.160443,0.00017531,2]
[391075664,1760304645447,-187.160443,0.00017531,2]
[391075666,1760304645457,-151.0,0.00017531,2]
[391075667,1760304645469,-151.0,0.00017531,2]
[391075670,1760304645478,-151.0,0.00017531,2]
[391075673,1760304645487,-423.3995584,0.00017583,2]
[391075675,1760304645497,-760.9641462,0.00017588,2]
[391075677,1760304645506,-6229.38382472,0.00017604,2]
[391075678,1760304645516,-2351.0,0.00017662,2]
[391075679,1760304645525,-161.53,0.00017666,2]
[391075680,1760304645534,-500.0,0.000177,2]
[391075681,1760304645543,-500.0,0.000177,2]
[391075682,1760304645553,-2000.0,0.00017716,2]
[391075683,1760304645562,-2000.0,0.00017716,2]
[391075684,1760304645571,-2000.0,0.00017716,2]
[391075685,1760304645580,-1193.64016077,0.00017716,2]
[391075686,1760304645590,-151.0,0.00017728,2]
[391075687,1760304645601,-151.0,0.00017728,2]
[391075688,1760304645611,-151.0,0.00017728,2]
[391075689,1760304645620,-151.0,0.00017728,2]
[391075690,1760304645629,-152.773377,0.00017728,2]
[391075691,1760304645637,-154.227105,0.00017728,2]
[391075692,1760304645646,-154.227105,0.00017728,2]
[391075693,1760304645655,-151.0,0.00017728,2]
[391075694,1760304645665,-154.227105,0.00017728,2]
[391075695,1760304645674,-151.0,0.00017728,2]
[391075696,1760304645683,-154.227105,0.00017728,2]
[391075697,1760304645692,-151.0,0.00017728,2]
[391075698,1760304645701,-151.0,0.00017728,2]
[391075699,1760304645710,-151.0,0.00017728,2]
[391075700,1760304645719,-151.0,0.00017728,2]
[391075701,1760304645728,-151.0,0.00017728,2]
[391075702,1760304645737,-151.0,0.00017728,2]
[391075703,1760304645746,-151.0,0.00017728,2]
[391075704,1760304645755,-151.0,0.00017728,2]
[391075705,1760304645764,-500.0,0.0001774,2]
[391075706,1760304645773,-328.79240744,0.00017768,2]
[391075707,1760304645782,-500.0,0.00017808,13]
[391075708,1760304645791,-19219.56276724,0.00017907,2]
[391075709,1760304645800,-448.082555,0.00017963,2]
[391075710,1760304645809,-151.0,0.00017963,2]
[391075711,1760304645818,-448.082555,0.00017963,2]
[391075712,1760304645827,-448.082555,0.00017963,2]
[391075713,1760304645836,-265.084906,0.00017963,2]
[391075714,1760304645847,-448.082555,0.00017963,2]
[391075716,1760304645857,-265.084906,0.00017963,2]
[391075718,1760304645866,-265.084906,0.00017963,2]
[391075720,1760304645875,-151.675238,0.00017963,2]
[391075721,1760304645884,-265.084906,0.00017963,2]
[391075722,1760304645893,-151.0,0.00017963,2]
[391075723,1760304645902,-151.0,0.00017963,2]
[391075724,1760304645911,-6229.38382472,0.0001799,2]
[391075727,1760304645920,-176.17,0.00017997,2]
[391075729,1760304645929,-198.04927919,0.00018,2]
[391075731,1760304645938,-1027.47363788,0.00018,2]
[391075733,1760304645947,-209.2199791,0.00018,2]
[391075735,1760304645956,-174.86399422,0.00018,2]
[391075736,1760304645965,-204.27564594,0.00018,2]
[391075737,1760304645974,-246.90919376,0.00018,2]
[391075739,1760304645988,-322.83,0.00018014,2]
[391075740,1760304645998,-1500.0,0.00018068,2]
[391075741,1760304646007,-1500.0,0.00018068,2]
[391075742,1760304646016,-1500.0,0.00018068,2]
[391075743,1760304646025,-1500.0,0.00018068,2]
[391075744,1760304646034,-1500.0,0.00018068,2]
[391075746,1760304646044,-1500.0,0.00018068,2]
[391075748,1760304646054,-1000.0,0.00018082,2]
[391075750,1760304646063,-199.06590457,0.00018085,2]
[391075751,1760304646072,-1027.47363788,0.000182,2]
[391075753,1760304646081,-209.2199791,0.000182,2]
[391075755,1760304646090,-204.27564594,0.000182,2]
[391075757,1760304646102,-801.884802,0.00018247,2]
[391075758,1760304646111,-801.884802,0.00018247,2]
[391075759,1760304646121,-801.884802,0.00018247,2]
[391075760,1760304646130,-801.884802,0.00018247,2]
[391075761,1760304646139,-801.884802,0.00018247,2]
[391075762,1760304646148,-801.884802,0.00018247,2]
[391075763,1760304646157,-801.884802,0.00018247,2]
[391075764,1760304646166,-801.884802,0.00018247,2]
[391075766,1760304646175,-801.884802,0.00018247,2]
[391075768,1760304646184,-801.884802,0.00018247,2]
[391075770,1760304646194,-801.884802,0.00018247,2]
[391075772,1760304646203,-801.884802,0.00018247,2]
[391075774,1760304646213,-801.884802,0.00018247,2]
[391075776,1760304646222,-801.884802,0.00018247,2]
[391075777,1760304646231,-801.884802,0.00018247,2]
[391075778,1760304646240,-801.884802,0.00018247,2]
[391075779,1760304646249,-1000.0,0.00018248,2]
[391075780,1760304646258,-1000.0,0.00018248,2]
[391075781,1760304646268,-2500.0,0.00018264,2]
[391075782,1760304646277,-2500.0,0.00018264,2]
[391075783,1760304646286,-2500.0,0.00018264,2]
[391075784,1760304646295,-161.30522415,0.00018273,2]
[391075785,1760304646304,-200.3101707,0.00018273,2]
[391075786,1760304646314,-19219.56276724,0.00018283,2]
[391075787,1760304646323,-4855.22256739,0.00018285,2]
[391075788,1760304646332,-5443.94043481,0.00018334,2]
[391075789,1760304646342,-6229.38382472,0.00018376,2]
[391075790,1760304646352,-1027.47363788,0.000184,2]
[391075791,1760304646361,-284.77774891,0.0001846,2]
[391075792,1760304646370,-1027.47363788,0.000185,2]
[391075793,1760304646379,-151.0,0.00018533,2]
[391075794,1760304646389,-2500.0,0.00018548,3]
[391075795,1760304646401,-151.0,0.00018554,2]
[391075796,1760304646411,-151.0,0.00018554,2]
[391075797,1760304646420,-151.0,0.00018554,2]
[391075798,1760304646429,-2500.0,0.00018557,3]
[391075799,1760304646439,-329.0,0.00018564,2]
[391075800,1760304646449,-2500.0,0.00018566,3]
[391075801,1760304646458,-500.0,0.00018573,2]
[391075802,1760304646467,-151.0,0.00018576,2]
[391075803,1760304646479,-151.0,0.00018576,2]
[391075804,1760304646488,-151.0,0.00018576,2]
[391075805,1760304646498,-151.0,0.00018576,2]
[391075806,1760304646507,-2000.0,0.00018616,2]
[391075807,1760304646516,-1406.16324469,0.00018616,2]
[391075808,1760304646526,-1741.68778231,0.00018616,2]
[391075809,1760304646536,-1000.0,0.00018616,2]
[391075810,1760304646546,-1852.7784957,0.00018616,2]
[391075811,1760304646555,-1007.00620439,0.00018616,2]
[391075812,1760304646564,-1027.47363788,0.000187,2]
[391075813,1760304646574,-1000.0,0.0001876,2]
[391075814,1760304646583,-1500.0,0.00018796,2]
[391075815,1760304646592,-1500.0,0.00018796,2]
[391075816,1760304646603,-500.0,0.00018812,2]
[391075817,1760304646612,-1447.52703936,0.00018812,2]
[391075818,1760304646621,-3000.0,0.00018812,2]
[391075819,1760304646630,-1027.47363788,0.000189,2]
[391075820,1760304646639,-202.79122279,0.000189,2]
[391075821,1760304646648,-619.21223112,0.00019,2]
[391075822,1760304646657,-1554.38162096,0.00019,2]
[391075823,1760304646666,-33438.63162419,0.00019,2]
[391075824,1760304646676,-1436.5368101,0.00019,2]
[391075825,1760304646685,-300.0,0.00019,2]
[391075826,1760304646695,-1000.0,0.00019099,2]
[391075827,1760304646704,-1027.47363788,0.000191,2]
[391075828,1760304646713,-227.91544221,0.00019121,2]
[391075829,1760304646723,-823.0,0.00019159,2]
[391075830,1760304646732,-2500.0,0.00019164,2]
[391075831,1760304646741,-3000.0,0.00019178,2]
[391075832,1760304646750,-151.0,0.00019178,2]
[391075833,1760304646759,-4000.0,0.00019178,2]
[391075834,1760304646768,-2303.89,0.00019178,2]
[391075835,1760304646777,-177.167268,0.00019178,2]
[391075836,1760304646786,-177.167268,0.00019178,2]
[391075837,1760304646797,-177.167268,0.00019178,2]
[391075838,1760304646806,-177.167268,0.00019178,2]
[391075839,1760304646816,-160.22238416,0.00019178,2]
[391075840,1760304646825,-176.17,0.00019191,2]
[391075841,1760304646834,-5826.26708087,0.00019197,2]
[391075842,1760304646844,-4121.0,0.00019259,2]
[391075843,1760304646855,-1182.0,0.00019259,2]
[391075844,1760304646865,-2545.0,0.00019259,2]
[391075845,1760304646874,-1027.47363788,0.000193,2]
[391075846,1760304646883,-500.0,0.00019309,2]
[391075847,1760304646893,-316.0,0.00019315,2]
[391075848,1760304646902,-2000.0,0.00019344,2]
[391075849,1760304646912,-801.884802,0.00019344,7]
[391075850,1760304646922,-801.884802,0.00019344,7]
[391075851,1760304646931,-801.884802,0.00019344,7]
[391075852,1760304646941,-801.88479857,0.00019344,7]
[391075853,1760304646951,-2911.80812179,0.0001936,2]
[391075854,1760304646960,-2143.74,0.00019398,2]
[391075855,1760304646969,-207.100581,0.00019398,7]
[391075856,1760304646978,-207.100581,0.00019398,7]
[391075857,1760304646987,-207.100581,0.00019398,7]
[391075858,1760304646997,-207.100581,0.00019398,7]
[391075859,1760304647007,-156.184138,0.00019398,7]
[391075860,1760304647016,-187.160443,0.00019398,7]
[391075861,1760304647026,-187.160443,0.00019398,7]
[391075862,1760304647036,-187.160443,0.00019398,7]
[391075863,1760304647046,-187.160443,0.00019398,7]
[391075864,1760304647055,-1591.05158387,0.000194,2]
[391075865,1760304647064,-151.0,0.00019416,7]
[391075866,1760304647073,-170.010548,0.00019416,7]
[391075867,1760304647083,-2379.0,0.00019429,2]
[391075868,1760304647092,-1000.0,0.00019438,2]
[391075869,1760304647104,-1027.47363788,0.000195,2]
[391075870,1760304647113,-257.060198,0.00019536,7]
[391075871,1760304647123,-199.06590457,0.00019677,2]
[391075872,1760304647132,-823.32684396,0.0001968,2]
[391075873,1760304647141,-1027.47363788,0.000197,2]
[391075874,1760304647151,-500.0,0.00019712,2]
[391075875,1760304647161,-156.587,0.00019726,2]
[391075876,1760304647170,-152.372557,0.00019801,7]
[391075877,1760304647179,-1000.0,0.00019999,2]
[391075878,1760304647189,-1514.13346931,0.0002,2]
[391075879,1760304647198,-1278.30676691,0.0002,2]
[391075880,1760304647208,-2121.38520712,0.0002,3]
[391075881,1760304647217,-1031.94832657,0.0002,2]
[391075882,1760304647227,-2827.8316872,0.0002,2]
[391075883,1760304647236,-2000.0,0.0002,2]
[391075884,1760304647245,-475.28169836,0.0002,3]
[391075885,1760304647254,-1000.0,0.0002,4]
[391075886,1760304647264,-2000.0,0.0002001,2]
[391075887,1760304647273,-2000.0,0.0002002,2]
[391075888,1760304647282,-2427.265726,0.0002003,2]
[391075889,1760304647290,-1975.82,0.00020072,2]
[391075890,1760304647300,-6797.31159435,0.0002011,2]
[391075891,1760304647309,-1000.0,0.00020116,2]
[391075892,1760304647318,-2556.73,0.00020145,2]
[391075893,1760304647328,-406.08,0.00020145,2]
[391075894,1760304647337,-384.19,0.00020187,2]
[391075895,1760304647347,-2261.79,0.0002023,2]
[391075896,1760304647357,-162.380719,0.00020274,2]
[391075897,1760304647366,-2521.94,0.0002038,2]
[391075898,1760304647375,-825.36,0.00020385,2]
[391075899,1760304647384,-326.69,0.00020475,2]
[391075900,1760304647395,-1310.0,0.00020491,2]
[391075901,1760304647406,-2703.45,0.00020514,2]
[391075902,1760304647415,-150.0,0.00020514,2]
[391075903,1760304647424,-190.43,0.00020548,2]
[391075904,1760304647434,-1000.0,0.00020548,2]
[391075905,1760304647443,-1000.0,0.00020548,2]
[391075906,1760304647452,-1000.0,0.00020548,2]
[391075907,1760304647462,-1000.0,0.00020548,2]
[391075908,1760304647473,-1000.0,0.00020548,2]
[391075909,1760304647482,-1000.0,0.00020548,2]
[391075910,1760304647491,-1000.0,0.00020548,2]
[391075911,1760304647500,-1000.0,0.00020548,2]
[391075912,1760304647509,-1000.0,0.00020548,2]
[391075913,1760304647518,-1000.0,0.00020548,2]
[391075914,1760304647528,-1000.0,0.00020548,2]
[391075915,1760304647537,-1000.0,0.00020548,2]
[391075916,1760304647546,-1000.0,0.00020548,2]
[391075917,1760304647556,-1000.0,0.00020548,2]
[391075918,1760304647565,-1000.0,0.00020548,2]
[391075919,1760304647574,-1000.0,0.00020548,2]
[391075920,1760304647583,-1000.0,0.00020548,2]
[391075921,1760304647592,-1000.0,0.00020548,2]
[391075922,1760304647602,-1000.0,0.00020548,2]
[391075923,1760304647612,-1000.0,0.00020548,2]
[391075924,1760304647621,-1000.0,0.00020548,2]
[391075925,1760304647630,-1000.0,0.00020548,2]
[391075926,1760304647639,-1000.0,0.00020548,2]
[391075927,1760304647648,-1000.0,0.00020548,2]
[391075928,1760304647657,-1000.0,0.00020548,2]
[391075929,1760304647667,-1000.0,0.00020548,2]
[391075930,1760304647676,-1000.0,0.00020548,2]
[391075931,1760304647685,-1000.0,0.00020548,2]
[391075932,1760304647694,-1000.0,0.00020548,2]
[391075933,1760304647703,-1000.0,0.00020548,2]
[391075934,1760304647713,-1000.0,0.00020548,2]
[391075935,1760304647722,-1000.0,0.00020548,2]
[391075936,1760304647731,-1000.0,0.00020548,2]
[391075937,1760304647740,-1000.0,0.00020548,2]
[391075938,1760304647749,-1000.0,0.00020548,2]
[391075939,1760304647759,-1000.0,0.00020548,2]
[391075940,1760304647768,-1000.0,0.00020548,2]
[391075941,1760304647777,-1000.0,0.00020548,2]
[391075942,1760304647786,-1000.0,0.00020548,2]
[391075943,1760304647795,-1000.0,0.00020548,2]
[391075944,1760304647805,-1000.0,0.00020548,2]
[391075945,1760304647814,-1000.0,0.00020548,2]
[391075946,1760304647823,-1000.0,0.00020548,2]
[391075947,1760304647832,-1000.0,0.00020548,2]
[391075948,1760304647842,-1000.0,0.00020548,2]
[391075949,1760304647852,-1000.0,0.00020548,2]
[391075950,1760304647861,-1000.0,0.00020548,2]
[391075951,1760304647870,-1000.0,0.00020548,2]
[391075952,1760304647879,-1000.0,0.00020548,2]
[391075953,1760304647889,-1000.0,0.00020548,2]
[391075954,1760304647898,-1000.0,0.00020548,2]
[391075955,1760304647907,-1000.0,0.00020548,2]
[391075956,1760304647916,-1000.0,0.00020548,2]
[391075957,1760304647925,-1000.0,0.00020548,2]
[391075958,1760304647934,-1000.0,0.00020548,2]
[391075959,1760304647943,-1000.0,0.00020548,2]
[391075960,1760304647953,-1000.0,0.00020548,2]
[391075961,1760304647963,-1000.0,0.00020548,2]
[391075962,1760304647972,-1000.0,0.00020548,2]
[391075963,1760304647981,-1000.0,0.00020548,2]
[391075964,1760304647990,-1000.0,0.00020548,2]
[391075965,1760304648000,-1000.0,0.00020548,2]
[391075966,1760304648009,-1000.0,0.00020548,2]
[391075967,1760304648019,-1000.0,0.00020548,2]
[391075968,1760304648028,-1000.0,0.00020548,2]
[391075969,1760304648037,-1000.0,0.00020548,2]
[391075970,1760304648046,-1000.0,0.00020548,2]
[391075971,1760304648056,-1000.0,0.00020548,2]
[391075972,1760304648066,-1000.0,0.00020548,2]
[391075973,1760304648076,-1000.0,0.00020548,2]
[391075974,1760304648086,-1000.0,0.00020548,2]
[391075975,1760304648096,-1000.0,0.00020548,2]
[391075976,1760304648107,-1000.0,0.00020548,2]
[391075977,1760304648117,-1000.0,0.00020548,2]
[391075978,1760304648127,-1000.0,0.00020548,2]
[391075979,1760304648136,-1000.0,0.00020548,2]
[391075980,1760304648146,-1000.0,0.00020548,2]
[391075981,1760304648156,-1000.0,0.00020548,2]
[391075982,1760304648165,-1000.0,0.00020548,2]
[391075983,1760304648175,-1000.0,0.00020548,2]
[391075984,1760304648184,-1000.0,0.00020548,2]
[391075985,1760304648194,-1000.0,0.00020548,2]
[391075986,1760304648203,-1000.0,0.00020548,2]
[391075987,1760304648213,-1000.0,0.00020548,2]
[391075988,1760304648222,-1000.0,0.00020548,2]
[391075989,1760304648231,-1000.0,0.00020548,2]
[391075990,1760304648242,-1000.0,0.00020548,2]
[391075991,1760304648251,-1000.0,0.00020548,2]
[391075992,1760304648260,-1000.0,0.00020548,2]
[391075993,1760304648269,-1000.0,0.00020548,2]
[391075994,1760304648278,-1000.0,0.00020548,2]
[391075995,1760304648288,-1000.0,0.00020548,2]
[391075996,1760304648298,-1000.0,0.00020548,2]
[391075997,1760304648307,-1000.0,0.00020548,2]
[391075998,1760304648317,-1000.0,0.00020548,2]
[391075999,1760304648326,-1000.0,0.00020548,2]
[391076000,1760304648336,-1000.0,0.00020548,2]
[391076001,1760304648346,-1000.0,0.00020548,2]
[391076002,1760304648356,-1000.0,0.00020548,2]
[391076003,1760304648366,-1000.0,0.00020548,2]
[391076004,1760304648587,-151.0,0.00020548,7]
[391076005,1760304648596,-275.342862,0.00020548,7]
[391076006,1760304648606,-448.082555,0.00020548,7]
[391076007,1760304648616,-151.0,0.00020548,7]
[391076008,1760304648625,-448.082555,0.00020548,7]
[391076009,1760304648634,-448.082555,0.00020548,7]
[391076010,1760304648644,-177.167268,0.00020548,7]
[391076011,1760304648653,-265.084906,0.00020548,7]
[391076012,1760304648662,-448.082555,0.00020548,7]
[391076013,1760304648672,-177.167268,0.00020548,7]
[391076014,1760304648682,-265.084906,0.00020548,7]
[391076015,1760304648691,-177.167268,0.00020548,7]
[391076016,1760304648700,-265.084906,0.00020548,7]
[391076017,1760304648710,-265.084906,0.00020548,7]
[391076018,1760304648720,-177.167268,0.00020548,7]
[391076019,1760304648730,-151.0,0.00020548,7]
[391076020,1760304648739,-151.0,0.00020548,7]
[391076021,1760304648749,-154.227105,0.00020548,7]